[Event "Turkish Cup 2022"]
[Site "Sakarya"]
[Date "2022.03.25"]
[Round "1.13"]
[White "Kurtyilmaz, Kuzey"]
[Black "Kirilmaz, Emre"]
[Result "0-1"]
[ECO "B19"]
[WhiteElo "1394"]
[BlackElo "2229"]
[Annotator "ChessBase"]
[PlyCount "47"]
[EventDate "2022.03.25"]
[EventType "swiss"]
[EventCountry "TUR"]
[SourceTitle "playchess.com"]
[Source "ChessBase"]
[SourceQuality "1"]
[TimeControl "5400+30"]

1. e4 {[%emt 0:01:00]} c6 {[%emt 0:01:00]} 2. d4 {[%emt 0:00:30]} d5 {[%emt 0:00:30]} 3. Nc3 {[%emt 0:00:30]} dxe4 {[%emt 0:00:00]} 4. Nxe4 {[%emt 0:00:00]} Bf5 {[%emt 0:00:00]} 5. Ng3 {[%emt 0:00:00]} Bg6 {[%emt 0:00:30]} 6. h4 {[%emt 0:00:30]} h6 {[%emt 0:00:30]} 7. Nf3 {[%emt 0:00:30]} Nd7 {[%emt 0:00:30]} 8. h5 {[%emt 0:00:00]} Bh7 {[%emt 0:00:00]} 9. Bd3 {[%emt 0:00:00]} Bxd3 {[%emt 0:00:00]} 10. Qxd3 {[%emt 0:00:00]} Ngf6 {[%emt 0:00:00]} 11. Bd2 {[%emt 0:00:00]} e6 {[%emt 0:00:00]} 12. Ne4 {[%emt 0:00:00]} Be7 {[%emt 0:00:30]} 13. O-O-O {[%emt 0:00:00]} Qb6 {[%emt 0:03:30]} 14. Nxf6+ {[%emt 0:03:30]} Bxf6 {[%emt 0:08:30]} 15. Rhe1 {[%emt 0:02:30]} a5 {[%emt 0:05:30]} 16. Bf4 {[%emt 0:04:30]} O-O {[%emt 0:23:30]} 17. g4 {[%emt 0:04:30]} Qa6 {[%emt 0:25:30]} 18. Qe3 {[%emt 0:04:30]} Nb6 {[%emt 0:07:30]} 19. g5 {[%emt 0:07:30]} Nc4 {[%emt 0:02:48]} 20. Qd3 {[%emt 0:02:30]} hxg5 {[%emt 0:00:13]} 21. Nxg5 {[%emt 0:01:30]} Bxg5 {[%emt 0:00:30]} 22. Bxg5 {[%emt 0:00:30]} Qb5 {[%emt 0:00:29]} 23. Rd2 {[%emt 0:02:30]} Qxb2+ {[%emt 0:00:30]} 24. Kd1 {[%emt 0:00:30]} 0-1

[Event "Turkish Cup 2022"]
[Site "Sakarya"]
[Date "2022.03.25"]
[Round "1.14"]
[White "Kilic, Efe Mert"]
[Black "Ari, Ahmet"]
[Result "1-0"]
[ECO "A01"]
[WhiteElo "2220"]
[BlackElo "1491"]
[Annotator "NA"]
[PlyCount "107"]
[EventDate "2022.03.25"]
[EventType "swiss"]
[EventCountry "TUR"]
[SourceTitle "playchess.com"]
[Source "ChessBase"]
[SourceQuality "1"]
[TimeControl "5400+30"]

1. b3 {[%emt 0:01:00]} e5 {[%emt 0:01:00]} 2. Bb2 {[%emt 0:00:00]} Nc6 {[%emt 0:00:30]} 3. e3 {[%emt 0:00:00]} d5 {[%emt 0:03:30]} 4. Bb5 {[%emt 0:00:00]} Bd6 {[%emt 0:01:30]} 5. Nf3 {[%emt 0:01:00]} Qe7 {[%emt 0:07:30]} 6. d4 {[%emt 0:02:30]} e4 {[%emt 0:05:30]} 7. Ne5 {[%emt 0:00:30]} Bd7 {[%emt 0:00:30]} 8. Nxd7 {[%emt 0:02:30]} Qxd7 {[%emt 0:00:30]} 9. c4 {[%emt 0:00:30]} Nf6 {[%emt 0:04:30]} 10. a3 {[%emt 0:17:30]} a6 {[%emt 0:02:30]} 11. Ba4 {[%emt 0:01:30]} O-O {[%emt 0:00:30]} 12. Nc3 {[%emt 0:01:30]} Qe6 {[%emt 0:01:30]} 13. b4 {[%emt 0:10:30]} Na7 {[%emt 0:04:30]} ({Don't do} 13... dxc4 14. d5 Nxd5 15. Qxd5 $16) 14. cxd5 {[%emt 0:03:30]} Nxd5 {[%emt 0:01:30]} 15. Nxd5 {[%emt 0:00:30]} Qxd5 {[%emt 0:01:30]} 16. O-O {[%emt 0:02:30]} Qg5 {[%emt 0:02:30]} 17. f4 {[%emt 0:01:30]} exf3 {[%emt 0:03:30]} 18. Qxf3 {[%emt 0:00:30]} Nc6 {[%emt 0:05:30]} 19. Bxc6 {[%emt 0:01:30]} (19. e4 $142) 19... bxc6 {[%emt 0:00:30]} 20. e4 {[%emt 0:00:30]} f6 {[%emt 0:03:30]} 21. Bc1 $11 {[%emt 0:08:30]} (21. Qc3 $16) 21... Qb5 {[%emt 0:05:30]} 22. Bd2 {[%emt 0:02:30]} Qc4 {[%emt 0:01:30]} 23. Qc3 {[%emt 0:00:30]} Qe2 {[%emt 0:01:30]} 24. Rae1 {[%emt 0:01:30]} Qh5 {[%emt 0:00:30]} 25. g3 {[%emt 0:01:30]} Qh3 {[%emt 0:00:30]} 26. Bf4 {[%emt 0:02:30]} Qd7 {[%emt 0:02:30]} 27. e5 {[%emt 0:05:30]} fxe5 {[%emt 0:01:30]} 28. dxe5 {[%emt 0:00:30]} Be7 {[%emt 0:02:30]} 29. Qc4+ {[%emt 0:01:30]} Qd5 {[%emt 0:01:30]} 30. Rc1 {[%emt 0:00:00]} Qxc4 {[%emt 0:02:30]} 31. Rxc4 {[%emt 0:00:00]} a5 {[%emt 0:00:00]} 32. Rxc6 {[%emt 0:07:30]} axb4 {[%emt 0:01:00]} 33. axb4 {[%emt 0:00:00]} Bxb4 {[%emt 0:01:30]} 34. Rxc7 {[%emt 0:00:00]} Ra2 {[%emt 0:01:30]} 35. h4 {[%emt 0:18:45]} h6 {[%emt 0:01:30]} 36. h5 {[%emt 0:01:30]} Ba5 {[%emt 0:01:30]} 37. Rb7 {[%emt 0:02:33]} Bc3 {[%emt 0:01:30]} 38. Rd1 {[%emt 0:00:24]} Ra1 {[%emt 0:02:30]} 39. Rxa1 {[%emt 0:00:58]} Bxa1 {[%emt 0:00:30]} 40. Kg2 {[%emt 0:00:28]} Rf5 {[%emt 0:02:30]} 41. e6 {[%emt 0:03:06]} Rf8 {[%emt 0:03:30]} 42. Kf3 {[%emt 0:01:03]} Re8 {[%emt 0:00:00]} 43. Rb8 {[%emt 0:00:41]} Rxb8 {[%emt 0:01:00]} 44. Bxb8 {[%emt 0:00:02]} Kf8 {[%emt 0:01:30]} 45. Bd6+ {[%emt 0:00:09]} Ke8 {[%emt 0:00:30]} 46. Ke4 {[%emt 0:00:06]} Bc3 {[%emt 0:08:05]} 47. Kf5 {[%emt 0:00:39]} Bd4 {[%emt 0:01:45]} 48. Be5 {[%emt 0:00:36]} Bf2 {[%emt 0:02:13]} 49. Bxg7 {[%emt 0:00:55]} Bxg3 {[%emt 0:00:30]} 50. Bxh6 {[%emt 0:00:00]} Ke7 {[%emt 0:00:52]} 51. Bg7 {[%emt 0:00:02]} Bf4 {[%emt 0:01:29]} 52. h6 {[%emt 0:00:04]} Bxh6 {[%emt 0:00:07]} 53. Bxh6 {[%emt 0:02:45]} Ke8 {[%emt 0:00:21]} 54. Kf6 {[%emt 0:00:29]} 1-0

[Event "Turkish Cup 2022"]
[Site "Sakarya"]
[Date "2022.03.25"]
[Round "1.16"]
[White "Yazici, Ugur Doga"]
[Black "Kamisli, Yigit"]
[Result "1-0"]
[ECO "C48"]
[WhiteElo "2195"]
[BlackElo "1427"]
[Annotator "NA"]
[PlyCount "99"]
[EventDate "2022.03.25"]
[EventType "swiss"]
[EventCountry "TUR"]
[SourceTitle "playchess.com"]
[Source "ChessBase"]
[SourceQuality "1"]
[TimeControl "5400+30"]

1. e4 {[%emt 0:01:00]} e5 {[%emt 0:01:00]} 2. Nf3 {[%emt 0:00:30]} Nc6 {[%emt 0:00:30]} 3. Nc3 {[%emt 0:00:00]} Nf6 {[%emt 0:00:30]} 4. Bb5 {[%emt 0:00:00]} Nd4 {[%emt 0:04:30]} 5. Bc4 {[%emt 0:00:00]} Nxf3+ {[%emt 0:05:30]} 6. Qxf3 {[%emt 0:00:00]} Be7 {[%emt 0:01:30]} 7. d3 {[%emt 0:00:30]} d6 {[%emt 0:01:30]} 8. h3 {[%emt 0:01:30]} h6 {[%emt 0:01:30]} 9. Qg3 {[%emt 0:04:30]} Nh5 {[%emt 0:05:30]} 10. Qf3 {[%emt 0:00:30]} Nf6 {[%emt 0:00:00]} 11. Be3 {[%emt 0:00:00]} O-O {[%emt 0:02:00]} 12. O-O-O {[%emt 0:03:00]} Be6 {[%emt 0:03:30]} 13. Qe2 {[%emt 0:09:30]} Qd7 {[%emt 0:07:30]} 14. d4 {[%emt 0:03:30]} Bxc4 {[%emt 0:03:30]} 15. Qxc4 {[%emt 0:00:00]} Qc6 {[%emt 0:04:30]} 16. Qxc6 {[%emt 0:01:00]} bxc6 {[%emt 0:00:30]} 17. dxe5 {[%emt 0:01:30]} dxe5 {[%emt 0:00:30]} 18. f3 {[%emt 0:00:00]} Ne8 {[%emt 0:07:30]} 19. Na4 {[%emt 0:02:00]} Nd6 {[%emt 0:01:30]} 20. Nc5 {[%emt 0:14:30]} Bg5 {[%emt 0:00:30]} 21. Bxg5 {[%emt 0:01:30]} hxg5 {[%emt 0:00:30]} 22. h4 $16 {[%emt 0:00:00]} (22. Na6 $18) 22... gxh4 {[%emt 0:08:30]} 23. Rxh4 {[%emt 0:00:00]} f6 {[%emt 0:12:30]} 24. Ne6 {[%emt 0:01:30]} Rfc8 {[%emt 0:03:30]} 25. Nxc7 {[%emt 0:00:30]} Rxc7 {[%emt 0:01:30]} 26. Rxd6 {[%emt 0:00:00]} Kf7 {[%emt 0:00:30]} 27. Rh1 {[%emt 0:00:00]} Ke7 {[%emt 0:00:30]} 28. Rd3 {[%emt 0:00:30]} Rd8 {[%emt 0:00:30]} 29. Rxd8 {[%emt 0:00:30]} Kxd8 {[%emt 0:00:30]} 30. Kd2 {[%emt 0:00:30]} Rd7+ {[%emt 0:02:30]} 31. Ke2 {[%emt 0:00:30]} Kc7 {[%emt 0:01:30]} 32. Rd1 {[%emt 0:01:30]} Rxd1 {[%emt 0:04:33]} 33. Kxd1 {[%emt 0:00:30]} Kd6 {[%emt 0:00:04]} 34. b4 {[%emt 0:00:30]} a6 {[%emt 0:04:59]} 35. Kd2 {[%emt 0:01:30]} c5 {[%emt 0:06:59]} 36. a3 {[%emt 0:00:30]} Kc6 {[%emt 0:00:57]} 37. c4 {[%emt 0:00:00]} Kb6 {[%emt 0:01:08]} 38. g3 {[%emt 0:02:00]} g5 {[%emt 0:01:32]} 39. Kc3 {[%emt 0:00:30]} Kc6 {[%emt 0:00:55]} 40. Kb3 {[%emt 0:00:30]} Kb6 {[%emt 0:02:01]} 41. Ka4 {[%emt 0:00:30]} cxb4 {[%emt 0:00:39]} 42. axb4 {[%emt 0:00:30]} Kc6 {[%emt 0:00:00]} 43. Ka5 {[%emt 0:00:30]} Kb7 {[%emt 0:00:01]} 44. b5 {[%emt 0:00:30]} axb5 {[%emt 0:00:30]} 45. Kxb5 {[%emt 0:00:00]} Kc7 {[%emt 0:00:29]} 46. Kc5 {[%emt 0:00:00]} Kd7 {[%emt 0:01:09]} 47. Kb6 {[%emt 0:00:00]} Kc8 {[%emt 0:00:20]} 48. Kc6 {[%emt 0:00:00]} Kd8 {[%emt 0:00:29]} 49. Kd6 {[%emt 0:00:00]} Ke8 {[%emt 0:00:54]} 50. Ke6 {[%emt 0:00:00]} 1-0

[Event "Turkish Cup 2022"]
[Site "Sakarya"]
[Date "2022.03.25"]
[Round "1.17"]
[White "Karabas, Mahsum"]
[Black "Ozdemir, Serhan Berat"]
[Result "0-1"]
[ECO "B40"]
[WhiteElo "1412"]
[BlackElo "2185"]
[Annotator "ChessBase"]
[PlyCount "42"]
[EventDate "2022.03.25"]
[EventType "swiss"]
[EventCountry "TUR"]
[SourceTitle "playchess.com"]
[Source "ChessBase"]
[SourceQuality "1"]
[TimeControl "5400+30"]

1. e4 {[%emt 0:02:00]} c5 {[%emt 0:01:00]} 2. Nf3 {[%emt 0:00:30]} e6 {[%emt 0:00:00]} 3. c3 {[%emt 0:01:30]} Nf6 {[%emt 0:00:00]} 4. Qc2 {[%emt 0:02:30]} Nc6 {[%emt 0:00:30]} 5. Bb5 {[%emt 0:00:00]} Qc7 {[%emt 0:02:30]} 6. Bxc6 {[%emt 0:05:00]} Qxc6 {[%emt 0:00:30]} 7. e5 {[%emt 0:02:30]} Nd5 {[%emt 0:00:30]} 8. O-O {[%emt 0:07:30]} b6 {[%emt 0:04:30]} 9. d4 {[%emt 0:02:30]} Bb7 {[%emt 0:01:30]} 10. dxc5 {[%emt 0:10:30]} bxc5 {[%emt 0:01:30]} 11. c4 {[%emt 0:04:30]} Ne7 {[%emt 0:02:30]} 12. b3 {[%emt 0:03:30]} Nf5 {[%emt 0:00:00]} 13. Bb2 {[%emt 0:00:30]} g5 {[%emt 0:03:00]} 14. Nbd2 {[%emt 0:15:30]} g4 {[%emt 0:06:30]} 15. Ne1 {[%emt 0:00:30]} h5 {[%emt 0:00:30]} 16. Qd3 {[%emt 0:00:30]} Bh6 {[%emt 0:00:30]} 17. f3 {[%emt 0:05:30]} Be3+ {[%emt 0:01:30]} 18. Kh1 {[%emt 0:01:30]} h4 {[%emt 0:00:30]} 19. h3 {[%emt 0:05:30]} Ng3+ {[%emt 0:02:30]} 20. Kh2 {[%emt 0:00:30]} Bxd2 {[%emt 0:00:00]} 21. Rg1 {[%emt 0:02:30]} Bf4 {[%emt 0:00:00]} 0-1

[Event "Turkish Cup 2022"]
[Site "Sakarya"]
[Date "2022.03.25"]
[Round "1.19"]
[White "Sari, Engin"]
[Black "Bacak, Muhammed Kaan"]
[Result "0-1"]
[ECO "B08"]
[WhiteElo "1455"]
[BlackElo "2155"]
[Annotator "NA"]
[PlyCount "116"]
[EventDate "2022.03.25"]
[EventType "swiss"]
[EventCountry "TUR"]
[SourceTitle "playchess.com"]
[Source "ChessBase"]
[SourceQuality "1"]
[TimeControl "5400+30"]

1. e4 {[%emt 0:01:00]} d6 {[%emt 0:01:00]} 2. d4 {[%emt 0:00:00]} g6 {[%emt 0:00:00]} 3. Nc3 {[%emt 0:01:00]} Bg7 {[%emt 0:00:00]} 4. Nf3 {[%emt 0:01:30]} Nf6 {[%emt 0:01:30]} 5. Bg5 {[%emt 0:01:30]} c6 {[%emt 0:01:30]} 6. Be2 {[%emt 0:04:30]} Qc7 {[%emt 0:02:30]} 7. O-O {[%emt 0:02:30]} Nbd7 {[%emt 0:02:30]} 8. Re1 {[%emt 0:02:30]} h6 {[%emt 0:06:30]} 9. Be3 {[%emt 0:03:30]} b5 {[%emt 0:02:30]} 10. a3 {[%emt 0:15:30]} O-O {[%emt 0:13:30]} 11. Qd2 {[%emt 0:07:30]} Kh7 {[%emt 0:02:30]} 12. h3 {[%emt 0:01:30]} Bb7 {[%emt 0:00:30]} 13. Rad1 {[%emt 0:06:30]} a5 {[%emt 0:05:30]} 14. b4 {[%emt 0:01:30]} axb4 {[%emt 0:00:30]} 15. axb4 {[%emt 0:00:30]} Ra3 {[%emt 0:03:30]} 16. Bd3 {[%emt 0:07:30]} Nb6 {[%emt 0:04:30]} 17. Bf4 {[%emt 0:06:30]} Nh5 {[%emt 0:15:30]} 18. Bh2 {[%emt 0:00:30]} e5 {[%emt 0:02:30]} 19. dxe5 {[%emt 0:02:30]} dxe5 {[%emt 0:00:00]} 20. Bxb5 {[%emt 0:01:30]} Bc8 {[%emt 0:09:00]} 21. Bf1 {[%emt 0:03:30]} Be6 {[%emt 0:01:30]} 22. b5 {[%emt 0:06:30]} Nf4 {[%emt 0:03:30]} 23. Re3 {[%emt 0:06:37]} Qc8 {[%emt 0:07:28]} 24. Nb1 {[%emt 0:03:35]} Ra7 {[%emt 0:07:51]} 25. bxc6 {[%emt 0:01:44]} Qxc6 {[%emt 0:00:14]} 26. Qc3 {[%emt 0:01:50]} Rc8 {[%emt 0:01:03]} 27. Qxc6 {[%emt 0:03:04]} Rxc6 {[%emt 0:00:08]} 28. c3 {[%emt 0:01:45]} Ra1 {[%emt 0:00:33]} 29. Ree1 {[%emt 0:00:57]} Rc5 {[%emt 0:01:54]} 30. Bxf4 {[%emt 0:00:30]} exf4 {[%emt 0:00:03]} 31. Nd4 {[%emt 0:00:04]} Na4 {[%emt 0:01:09]} 32. Nxe6 {[%emt 0:02:36]} fxe6 {[%emt 0:00:09]} 33. c4 {[%emt 0:00:07]} g5 {[%emt 0:02:06]} 34. Nd2 {[%emt 0:00:49]} Rxd1 {[%emt 0:01:25]} 35. Rxd1 {[%emt 0:00:01]} Nc3 {[%emt 0:00:06]} 36. Rc1 {[%emt 0:01:02]} Rc7 {[%emt 0:00:25]} 37. f3 {[%emt 0:00:46]} Bd4+ {[%emt 0:00:06]} 38. Kh2 {[%emt 0:00:33]} Kg6 {[%emt 0:02:13]} 39. Nb1 {[%emt 0:00:12]} Na4 {[%emt 0:00:22]} 40. Na3 {[%emt 0:00:13]} Bc5 {[%emt 0:00:53]} 41. Nb5 {[%emt 0:01:14]} Rd7 {[%emt 0:00:08]} 42. Be2 {[%emt 0:03:18]} Rd2 {[%emt 0:00:19]} 43. Bd1 {[%emt 0:00:00]} Nb2 {[%emt 0:00:50]} 44. Bb3 {[%emt 0:00:45]} Kf6 {[%emt 0:01:26]} 45. Rb1 {[%emt 0:01:18]} Ke5 {[%emt 0:00:21]} 46. Kh1 {[%emt 0:00:13]} h5 {[%emt 0:00:12]} 47. Kh2 {[%emt 0:00:04]} Bf2 {[%emt 0:00:32]} 48. Kh1 {[%emt 0:00:50]} g4 {[%emt 0:00:40]} 49. hxg4 {[%emt 0:00:30]} hxg4 {[%emt 0:00:00]} 50. fxg4 {[%emt 0:00:02]} Kf6 {[%emt 0:00:25]} 51. Nc7 {[%emt 0:00:50]} Rd7 {[%emt 0:00:49]} 52. e5+ {[%emt 0:00:54]} Kxe5 {[%emt 0:00:30]} 53. g3 {[%emt 0:00:08]} f3 {[%emt 0:00:11]} 54. Bc2 {[%emt 0:00:53]} Rd8 {[%emt 0:00:20]} 55. Bg6 {[%emt 0:00:19]} Nxc4 {[%emt 0:00:59]} 56. Rf1 {[%emt 0:00:43]} Rd2 {[%emt 0:00:20]} 57. Bh5 {[%emt 0:00:48]} Ne3 {[%emt 0:00:21]} 58. Rc1 {[%emt 0:00:14]} Bxg3 {[%emt 0:00:09]} 0-1

[Event "Turkish Cup 2022"]
[Site "Sakarya"]
[Date "2022.03.25"]
[Round "1.20"]
[White "Ererdem, Gani Eren"]
[Black "Gur, Gurbuz"]
[Result "1-0"]
[ECO "D06"]
[WhiteElo "2134"]
[BlackElo "1386"]
[Annotator "NA"]
[PlyCount "51"]
[EventDate "2022.03.25"]
[EventType "swiss"]
[EventCountry "TUR"]
[SourceTitle "playchess.com"]
[Source "ChessBase"]
[SourceQuality "1"]
[TimeControl "5400+30"]

1. d4 {[%emt 0:01:00]} Nf6 {[%emt 0:04:00]} 2. Nf3 {[%emt 0:00:30]} c5 {[%emt 0:02:30]} 3. c4 {[%emt 0:00:30]} cxd4 {[%emt 0:00:30]} 4. Nxd4 {[%emt 0:00:30]} d5 {[%emt 0:01:30]} 5. cxd5 {[%emt 0:05:30]} Nxd5 {[%emt 0:00:00]} 6. e4 {[%emt 0:07:30]} Nf6 {[%emt 0:00:00]} 7. Bb5+ {[%emt 0:01:30]} Bd7 {[%emt 0:00:00]} 8. Bxd7+ {[%emt 0:11:30]} Qxd7 {[%emt 0:00:00]} 9. e5 {[%emt 0:00:30]} Nd5 {[%emt 0:00:30]} 10. e6 {[%emt 0:00:30]} fxe6 {[%emt 0:00:30]} 11. O-O {[%emt 0:04:30]} Nc6 {[%emt 0:01:30]} 12. Nc3 {[%emt 0:25:30]} g6 {[%emt 0:01:30]} 13. Ne4 {[%emt 0:07:30]} Nf6 {[%emt 0:01:30]} 14. Nxc6 {[%emt 0:02:30]} Qxc6 {[%emt 0:00:30]} 15. Ng5 {[%emt 0:00:30]} h6 {[%emt 0:00:30]} 16. Nf3 {[%emt 0:00:30]} Rd8 {[%emt 0:01:30]} 17. Qe2 {[%emt 0:04:30]} Qe4 {[%emt 0:00:30]} 18. Qb5+ {[%emt 0:01:30]} Qc6 {[%emt 0:00:30]} 19. Qb3 {[%emt 0:02:30]} Nd7 {[%emt 0:01:30]} 20. Nd4 {[%emt 0:01:42]} Qb6 {[%emt 0:04:30]} 21. Nxe6 {[%emt 0:01:21]} Rc8 {[%emt 0:00:30]} 22. Qh3 {[%emt 0:02:42]} Rc6 $18 {[%emt 0:00:30]} 23. Be3 {[%emt 0:00:45]} Qa6 {[%emt 0:01:30]} 24. Bd4 {[%emt 0:01:58]} Nf6 {[%emt 0:01:30]} 25. Rfe1 {[%emt 0:00:24]} Qc4 {[%emt 0:01:30]} 26. b3 {[%emt 0:01:35]} 1-0

[Event "Turkish Cup 2022"]
[Site "Sakarya"]
[Date "2022.03.25"]
[Round "1.21"]
[White "Akinci, Ahmet"]
[Black "Guven, Oguz Kagan"]
[Result "0-1"]
[ECO "A65"]
[WhiteElo "1379"]
[BlackElo "2157"]
[Annotator "NA"]
[PlyCount "62"]
[EventDate "2022.03.25"]
[EventType "swiss"]
[EventCountry "TUR"]
[SourceTitle "playchess.com"]
[Source "ChessBase"]
[SourceQuality "1"]
[TimeControl "5400+30"]

1. d4 {[%emt 0:01:00]} Nf6 {[%emt 0:01:00]} 2. c4 {[%emt 0:00:30]} c5 {[%emt 0:00:00]} 3. d5 {[%emt 0:05:30]} e6 {[%emt 0:00:00]} 4. Nc3 {[%emt 0:00:30]} exd5 {[%emt 0:00:30]} 5. cxd5 {[%emt 0:00:30]} d6 {[%emt 0:00:30]} 6. e4 {[%emt 0:00:30]} g6 {[%emt 0:00:30]} 7. Bg5 {[%emt 0:00:30]} Bg7 {[%emt 0:00:30]} 8. h3 {[%emt 0:00:30]} O-O {[%emt 0:00:30]} 9. Qd2 {[%emt 0:00:30]} Re8 {[%emt 0:00:30]} 10. Bd3 {[%emt 0:00:30]} a6 {[%emt 0:00:00]} 11. a4 {[%emt 0:01:30]} Nbd7 {[%emt 0:01:00]} 12. Nge2 {[%emt 0:00:30]} Qc7 {[%emt 0:00:00]} 13. O-O {[%emt 0:02:30]} Rb8 {[%emt 0:00:00]} 14. b3 {[%emt 0:03:30]} Ne5 {[%emt 0:10:30]} 15. Bc4 {[%emt 0:01:30]} Nxc4 {[%emt 0:01:30]} 16. bxc4 {[%emt 0:00:00]} Nxe4 {[%emt 0:00:30]} 17. Qc1 {[%emt 0:03:00]} Nxg5 {[%emt 0:01:30]} 18. Qxg5 {[%emt 0:00:30]} Qe7 {[%emt 0:01:30]} 19. Qd2 {[%emt 0:02:30]} Qh4 {[%emt 0:01:30]} 20. f4 {[%emt 0:01:30]} Bf5 {[%emt 0:01:30]} 21. Rf3 {[%emt 0:00:30]} Re7 {[%emt 0:00:30]} 22. g4 {[%emt 0:05:30]} Rbe8 {[%emt 0:04:30]} 23. Rc1 {[%emt 0:13:30]} Be4 {[%emt 0:14:30]} 24. Re3 {[%emt 0:04:30]} f5 {[%emt 0:00:30]} 25. g5 {[%emt 0:06:30]} h6 {[%emt 0:01:30]} 26. Rg3 $19 {[%emt 0:07:30]} (26. gxh6 Bxh6 27. Rf1) 26... hxg5 {[%emt 0:01:30]} 27. Rxg5 {[%emt 0:00:30]} Qxh3 {[%emt 0:01:30]} 28. Rxg6 {[%emt 0:05:30]} Qh1+ {[%emt 0:00:30]} 29. Kf2 {[%emt 0:00:30]} Qh2+ {[%emt 0:00:00]} 30. Kf1 {[%emt 0:01:30]} Bf3 {[%emt 0:01:00]} 31. Ng1 {[%emt 0:00:30]} Qxd2 {[%emt 0:00:30]} 0-1

[Event "Turkish Cup 2022"]
[Site "Sakarya"]
[Date "2022.03.25"]
[Round "1.22"]
[White "Kul, Ozdemir Efe"]
[Black "Pazarcioglu, Ilker"]
[Result "1-0"]
[ECO "A36"]
[WhiteElo "2042"]
[BlackElo "1415"]
[Annotator "NA"]
[PlyCount "83"]
[EventDate "2022.03.25"]
[EventType "swiss"]
[EventCountry "TUR"]
[SourceTitle "playchess.com"]
[Source "ChessBase"]
[SourceQuality "1"]
[TimeControl "5400+30"]

1. g3 {[%emt 0:01:00]} Nf6 {[%emt 0:01:00]} 2. Bg2 {[%emt 0:00:30]} g6 {[%emt 0:00:30]} 3. c4 {[%emt 0:01:30]} Bg7 {[%emt 0:00:00]} 4. Nc3 {[%emt 0:00:30]} O-O {[%emt 0:00:00]} 5. e4 {[%emt 0:00:30]} d6 {[%emt 0:00:30]} 6. Nge2 {[%emt 0:00:30]} c5 {[%emt 0:00:30]} 7. O-O {[%emt 0:00:30]} Nc6 {[%emt 0:00:30]} 8. h3 {[%emt 0:00:30]} a6 {[%emt 0:02:30]} 9. d3 {[%emt 0:02:30]} Rb8 {[%emt 0:00:30]} 10. Be3 {[%emt 0:03:30]} Bd7 {[%emt 0:05:30]} 11. Qd2 {[%emt 0:01:30]} Ne8 {[%emt 0:05:30]} 12. Kh2 {[%emt 0:10:30]} b5 {[%emt 0:02:30]} 13. cxb5 {[%emt 0:03:30]} axb5 {[%emt 0:00:30]} 14. d4 {[%emt 0:00:30]} b4 {[%emt 0:07:30]} 15. Nd1 {[%emt 0:03:30]} cxd4 {[%emt 0:06:30]} 16. Nxd4 {[%emt 0:00:30]} Nc7 {[%emt 0:05:30]} 17. Rc1 {[%emt 0:02:30]} Nxd4 {[%emt 0:02:30]} 18. Bxd4 {[%emt 0:00:30]} Bxd4 {[%emt 0:01:30]} 19. Qxd4 {[%emt 0:00:30]} Ne6 {[%emt 0:00:30]} 20. Qd2 {[%emt 0:02:30]} Bb5 {[%emt 0:02:30]} 21. Rh1 {[%emt 0:08:30]} Nc5 {[%emt 0:02:30]} 22. Ne3 {[%emt 0:06:30]} Bc6 {[%emt 0:04:30]} 23. Rc4 {[%emt 0:07:30]} Qb6 {[%emt 0:12:30]} 24. Nd5 {[%emt 0:01:30]} Bxd5 {[%emt 0:01:30]} 25. exd5 {[%emt 0:00:30]} Rb7 {[%emt 0:01:30]} 26. Re1 {[%emt 0:03:30]} Ra8 {[%emt 0:00:30]} 27. Qh6 {[%emt 0:01:30]} Nd7 {[%emt 0:03:30]} 28. Rxe7 {[%emt 0:04:30]} Nf8 {[%emt 0:05:30]} 29. Rc6 {[%emt 0:03:30]} Qxc6 {[%emt 0:05:30]} 30. dxc6 {[%emt 0:00:30]} Rxe7 {[%emt 0:00:00]} 31. Qd2 {[%emt 0:01:30]} Rxa2 {[%emt 0:05:09]} 32. Qxd6 {[%emt 0:03:30]} Raa7 {[%emt 0:02:08]} 33. Qxb4 {[%emt 0:00:30]} Ne6 {[%emt 0:01:09]} 34. Qb8+ {[%emt 0:03:30]} Kg7 {[%emt 0:00:39]} 35. b4 {[%emt 0:00:30]} Ra2 {[%emt 0:04:23]} 36. b5 {[%emt 0:05:04]} Nc7 {[%emt 0:05:17]} 37. Qd8 {[%emt 0:04:03]} Ree2 {[%emt 0:02:41]} 38. Qxc7 {[%emt 0:01:09]} Rxf2 {[%emt 0:00:30]} 39. Qe5+ {[%emt 0:00:00]} Kg8 {[%emt 0:00:46]} 40. Qd5 {[%emt 0:00:10]} Kf8 {[%emt 0:01:17]} 41. c7 {[%emt 0:00:45]} Rac2 {[%emt 0:00:56]} 42. b6 {[%emt 0:02:43]} 1-0

[Event "Turkish Cup 2022"]
[Site "Sakarya"]
[Date "2022.03.25"]
[Round "1.23"]
[White "Karaseki, Ibrahim Erol"]
[Black "Tarhan, Adar"]
[Result "0-1"]
[ECO "D11"]
[WhiteElo "1412"]
[BlackElo "2125"]
[Annotator "NA"]
[PlyCount "64"]
[EventDate "2022.03.25"]
[EventType "swiss"]
[EventCountry "TUR"]
[SourceTitle "playchess.com"]
[Source "ChessBase"]
[SourceQuality "1"]
[TimeControl "5400+30"]

1. d4 {[%emt 0:01:00]} d5 {[%emt 0:01:00]} 2. Nf3 {[%emt 0:00:00]} Nf6 {[%emt 0:00:30]} 3. g3 {[%emt 0:00:00]} c6 {[%emt 0:00:30]} 4. Bg2 {[%emt 0:00:30]} Bf5 {[%emt 0:00:30]} 5. O-O {[%emt 0:00:00]} e6 {[%emt 0:00:30]} 6. c4 {[%emt 0:00:00]} Be7 {[%emt 0:00:30]} 7. Nc3 {[%emt 0:01:30]} Nbd7 {[%emt 0:02:30]} 8. Ne5 {[%emt 0:04:30]} O-O {[%emt 0:03:30]} 9. Bf4 {[%emt 0:05:30]} h6 {[%emt 0:04:30]} 10. cxd5 {[%emt 0:04:30]} exd5 {[%emt 0:00:30]} 11. h3 {[%emt 0:03:30]} g5 {[%emt 0:05:30]} 12. g4 {[%emt 0:07:30]} gxf4 {[%emt 0:01:30]} 13. gxf5 {[%emt 0:00:30]} Bd6 {[%emt 0:00:30]} 14. Nxd7 {[%emt 0:08:30]} Qxd7 {[%emt 0:00:30]} 15. Qd3 {[%emt 0:00:30]} Kh8 {[%emt 0:01:30]} 16. e4 {[%emt 0:08:30]} dxe4 {[%emt 0:01:30]} 17. Nxe4 {[%emt 0:02:30]} Qxf5 {[%emt 0:02:30]} 18. Rad1 {[%emt 0:01:30]} Nxe4 {[%emt 0:06:30]} 19. Qxe4 {[%emt 0:00:30]} Qf6 {[%emt 0:01:30]} 20. b3 {[%emt 0:04:30]} Rg8 {[%emt 0:04:30]} 21. Kh1 {[%emt 0:01:30]} Rae8 {[%emt 0:03:30]} 22. Qf3 {[%emt 0:00:30]} Rg5 {[%emt 0:03:30]} 23. Rg1 $17 {[%emt 0:04:30]} Reg8 {[%emt 0:01:30]} 24. Rd2 {[%emt 0:04:30]} Rd5 {[%emt 0:08:30]} 25. Qd3 {[%emt 0:02:30]} f3 {[%emt 0:01:30]} 26. Bxf3 {[%emt 0:10:30]} Rdg5 {[%emt 0:01:30]} 27. Rxg5 {[%emt 0:04:30]} Qxg5 {[%emt 0:00:00]} 28. Bg4 {[%emt 0:03:45]} h5 {[%emt 0:00:00]} 29. f4 {[%emt 0:01:39]} Bxf4 {[%emt 0:00:30]} 30. Rg2 {[%emt 0:01:02]} hxg4 {[%emt 0:00:30]} 31. Rxg4 {[%emt 0:00:00]} Qd5+ {[%emt 0:00:30]} 32. Kg1 {[%emt 0:00:15]} Be5 {[%emt 0:00:30]} 0-1